fUSD/lending_fUSD_20240819
["ID","MTS","AMOUNT","RATE_DAILY","PERIOD"]
[335246207,1724029806819,-537.80904996,0.0001086,2]
[335246208,1724029806841,-151.0,0.0001086,2]
[335246209,1724029806864,-800.103196,0.0001086,2]
[335246210,1724029806888,-800.103196,0.0001086,2]
[335246211,1724029806910,-233.047896,0.0001086,2]
[335246212,1724029806932,-151.0,0.0001086,2]
[335246213,1724029806955,-151.0,0.0001086,2]
[335246214,1724029806978,-151.0,0.0001086,2]
[335246215,1724029807000,-151.0,0.0001086,2]
[335246216,1724029807024,-1193.71,0.0001086,2]
[335246217,1724029807046,-1193.71,0.0001086,2]
[335246218,1724029807071,-1193.71,0.0001086,2]
[335246219,1724029807093,-1193.71,0.0001086,2]
[335246220,1724029807115,-1193.71,0.0001086,2]
[335246221,1724029807137,-1193.71,0.0001086,2]
[335246222,1724029807159,-500.0,0.0001086,2]
[335246223,1724029807181,-500.0,0.0001086,2]
[335246224,1724029807204,-500.0,0.0001086,2]
[335246225,1724029807229,-628.25723116,0.0001086,2]
[335246226,1724029807255,-151.0,0.0001086,2]
[335246227,1724029807277,-681.09,0.0001086,2]
[335246228,1724029807305,-681.09,0.0001086,2]
[335246229,1724029807335,-681.09,0.0001086,2]
[335246230,1724029807377,-681.09,0.0001086,2]
[335246231,1724029807419,-681.09,0.0001086,2]
[335246232,1724029807455,-151.0,0.0001086,2]
[335246233,1724029807484,-151.0,0.0001086,2]
[335246234,1724029807508,-151.0,0.0001086,2]
[335246235,1724029807530,-151.0,0.0001086,2]
[335246236,1724029807558,-298.976342,0.0001086,2]
[335246237,1724029807582,-298.976342,0.0001086,2]
[335246238,1724029807605,-298.976342,0.0001086,2]
[335246239,1724029807629,-298.976342,0.0001086,2]
[335246240,1724029807652,-151.0,0.0001086,2]
[335246241,1724029807724,-151.0,0.0001086,2]
[335246242,1724029807774,-267.226796,0.0001086,2]
[335246243,1724029807846,-500.0,0.0001086,2]
[335246244,1724029807889,-155.0266848,0.0001086,2]
[335246245,1724029807913,-170.998454,0.0001086,2]
[335246246,1724029807935,-151.0,0.0001086,2]
[335246247,1724029807968,-170.998454,0.0001086,2]
[335246248,1724029807990,-151.0,0.0001086,2]
[335246249,1724029808014,-151.0,0.0001086,2]
[335246250,1724029808035,-208.527118,0.0001086,2]
[335246251,1724029808058,-208.527118,0.0001086,2]
[335246252,1724029808081,-277.285922,0.0001086,2]
[335246253,1724029808103,-223.400686,0.0001086,2]
[335246254,1724029808126,-163.151581,0.0001086,2]
[335246255,1724029808148,-163.151581,0.0001086,2]
[335246256,1724029808169,-236.364642,0.0001086,2]
[335246257,1724029808192,-236.364642,0.0001086,2]
[335246258,1724029808214,-500.0,0.0001086,2]
[335246259,1724029808235,-500.0,0.0001086,2]
[335246260,1724029808291,-500.0,0.0001086,2]
[335246261,1724029808328,-500.0,0.0001086,2]
[335246262,1724029808354,-500.0,0.0001086,2]
[335246263,1724029808376,-151.0,0.0001086,2]
[335246264,1724029808536,-151.0,0.0001086,2]
[335246265,1724029808558,-151.0,0.0001086,2]
[335246266,1724029808580,-477.98809795,0.0001086,2]
[335246267,1724029808602,-500.0,0.0001086,2]
[335246268,1724029808624,-500.0,0.0001086,2]
[335246269,1724029808645,-536.47660797,0.0001086,2]
[335246270,1724029808667,-151.727909,0.0001086,2]
[335246271,1724029808688,-500.0,0.0001086,2]
[335246272,1724029808710,-500.0,0.0001086,2]
[335246273,1724029808732,-500.0,0.0001086,2]
[335246274,1724029808769,-500.0,0.0001086,2]
[335246275,1724029808812,-319.90400875,0.0001086,2]
[335246276,1724029808846,-2088.458762,0.0001086,2]
[335246277,1724029808885,-2088.458762,0.0001086,2]
[335246278,1724029808907,-500.0,0.0001086,2]
[335246279,1724029808930,-500.0,0.0001086,2]
[335246280,1724029808952,-500.0,0.0001086,2]
[335246281,1724029808973,-500.0,0.0001086,2]
[335246282,1724029808994,-500.0,0.0001086,2]
[335246283,1724029809015,-500.0,0.0001086,2]
[335246284,1724029809037,-1283.26,0.0001086,2]
[335246285,1724029809060,-1283.26,0.0001086,2]
[335246286,1724029809082,-1283.26,0.0001086,2]
[335246287,1724029809103,-1283.26,0.0001086,2]
[335246288,1724029809124,-1283.26,0.0001086,2]
[335246289,1724029809146,-1283.26,0.0001086,2]
[335246290,1724029809168,-151.0,0.0001086,2]
[335246291,1724029809190,-9728.94,0.0001086,2]
[335246292,1724029809212,-9728.94,0.0001086,2]
[335246293,1724029809233,-9728.94,0.0001086,2]
[335246294,1724029809255,-9728.94,0.0001086,2]
[335246295,1724029809276,-9728.94,0.0001086,2]
[335246296,1724029809298,-9728.94,0.0001086,2]
[335246297,1724029809320,-749.125576,0.0001086,2]
[335246298,1724029809341,-749.125576,0.0001086,2]
[335246299,1724029809362,-508.36791937,0.0001086,2]
[335246300,1724029809383,-1337484.56059865,0.00010861,2]
[335246301,1724029809403,-151.253748,0.00010861,2]
[335246302,1724029809424,-151.0,0.00010861,2]
[335246303,1724029809445,-196.3,0.00010861,2]
[335246304,1724029809466,-210.838375,0.00010861,2]
[335246305,1724029809487,-210.838375,0.00010861,2]
[335246306,1724029809508,-151.0,0.00010861,2]
[335246307,1724029809529,-800.103196,0.00010861,2]
[335246308,1724029809550,-800.103196,0.00010861,2]
[335246309,1724029809572,-245.086618,0.00010861,2]
[335246310,1724029809594,-287.735626,0.00010861,2]
[335246311,1724029809614,-151.0,0.00010861,2]
[335246312,1724029809636,-233.760022,0.00010861,2]
[335246313,1724029809657,-298.976342,0.00010861,2]
[335246314,1724029809679,-298.976342,0.00010861,2]
[335246315,1724029809700,-151.0,0.00010861,2]
[335246316,1724029809722,-170.998454,0.00010861,2]
[335246317,1724029809742,-151.0,0.00010861,2]
[335246318,1724029809763,-170.998454,0.00010861,2]
[335246319,1724029809783,-151.0,0.00010861,2]
[335246320,1724029809807,-151.0,0.00010861,2]
[335246321,1724029809835,-208.527118,0.00010861,2]
[335246322,1724029809855,-208.527118,0.00010861,2]
[335246323,1724029809879,-163.151581,0.00010861,2]
[335246324,1724029809904,-163.151581,0.00010861,2]
[335246325,1724029809926,-236.364642,0.00010861,2]
[335246326,1724029809947,-236.364642,0.00010861,2]
[335246327,1724029809968,-151.0,0.00010861,2]
[335246328,1724029809990,-151.0,0.00010861,2]
[335246329,1724029810014,-2088.458762,0.00010861,2]
[335246330,1724029810035,-2088.458762,0.00010861,2]
[335246331,1724029810057,-151.149052,0.00010861,2]
[335246332,1724029810081,-749.125576,0.00010861,2]
[335246333,1724029810103,-749.125576,0.00010861,2]
[335246334,1724029810124,-681.09,0.00010862,2]
[335246335,1724029810145,-500.0,0.00010862,2]
[335246336,1724029810166,-6397.8107081,0.00010863,2]
[335246337,1724029810188,-1762.6720713,0.00010863,2]
[335246338,1724029810210,-156.16561729,0.00010869,2]
[335246339,1724029810231,-151.0,0.00010869,2]
[335246340,1724029810252,-210.838375,0.00010869,2]
[335246341,1724029810273,-210.838375,0.00010869,2]
[335246342,1724029810294,-151.0,0.00010869,2]
[335246343,1724029810316,-800.103196,0.00010869,2]
[335246344,1724029810336,-800.103196,0.00010869,2]
[335246345,1724029810358,-151.0,0.00010869,2]
[335246346,1724029810379,-298.976342,0.00010869,2]
[335246347,1724029810400,-298.976342,0.00010869,2]
[335246348,1724029810420,-151.0,0.00010869,2]
[335246349,1724029810442,-170.998454,0.00010869,2]
[335246350,1724029810463,-151.0,0.00010869,2]
[335246351,1724029810485,-170.998454,0.00010869,2]
[335246352,1724029810506,-151.0,0.00010869,2]
[335246353,1724029810527,-151.0,0.00010869,2]
[335246354,1724029810548,-208.527118,0.00010869,2]
[335246355,1724029810571,-208.527118,0.00010869,2]
[335246356,1724029810592,-15812.9616666,0.00010869,2]
[335246357,1724029810612,-1431.5743364,0.00010869,2]
[335246358,1724029810632,-6344.44847389,0.0001087,2]
[335246359,1724029810653,-759.0,0.0001087,2]
[335246360,1724029810673,-168.0,0.0001087,2]
[335246361,1724029810693,-153.25915,0.00010876,2]
[335246362,1724029810714,-210.838375,0.00010876,2]
[335246363,1724029810734,-210.838375,0.00010876,2]
[335246364,1724029810755,-210.838375,0.00010876,2]
[335246365,1724029810775,-210.838375,0.00010876,2]
[335246366,1724029810799,-151.0,0.00010876,2]
[335246367,1724029810831,-800.103196,0.00010876,2]
[335246368,1724029810852,-151.0,0.00010876,2]
[335246369,1724029810873,-800.103196,0.00010876,2]
[335246370,1724029810899,-800.103196,0.00010876,2]
[335246371,1724029810920,-800.103196,0.00010876,2]
[335246372,1724029810941,-151.0,0.00010876,2]
[335246373,1724029810962,-151.0,0.00010876,2]
[335246374,1724029810984,-1193.71,0.00010876,2]
[335246375,1724029811005,-1193.71,0.00010876,2]
[335246376,1724029811025,-1193.71,0.00010876,2]
[335246377,1724029811046,-681.09,0.00010876,2]
[335246378,1724029811070,-681.09,0.00010876,2]
[335246379,1724029811091,-681.09,0.00010876,2]
[335246380,1724029811112,-298.976342,0.00010876,2]
[335246381,1724029811133,-298.976342,0.00010876,2]
[335246382,1724029811155,-298.976342,0.00010876,2]
[335246383,1724029811176,-298.976342,0.00010876,2]
[335246384,1724029811197,-151.0,0.00010876,2]
[335246385,1724029811218,-151.0,0.00010876,2]
[335246386,1724029811239,-170.998454,0.00010876,2]
[335246387,1724029811260,-170.998454,0.00010876,2]
[335246388,1724029811282,-151.0,0.00010876,2]
[335246389,1724029811304,-151.0,0.00010876,2]
[335246390,1724029811331,-170.998454,0.00010876,2]
[335246391,1724029811352,-170.998454,0.00010876,2]
[335246392,1724029811373,-271.234104,0.00010876,2]
[335246393,1724029811394,-151.0,0.00010876,2]
[335246394,1724029811416,-186.1877,0.00010876,2]
[335246395,1724029811438,-208.527118,0.00010876,2]
[335246396,1724029811459,-208.527118,0.00010876,2]
[335246397,1724029811480,-208.527118,0.00010876,2]
[335246398,1724029811502,-208.527118,0.00010876,2]
[335246399,1724029811524,-163.151581,0.00010876,2]
[335246400,1724029811546,-163.151581,0.00010876,2]
[335246401,1724029811571,-163.151581,0.00010876,2]
[335246402,1724029811592,-163.151581,0.00010876,2]
[335246403,1724029811613,-163.151581,0.00010876,2]
[335246404,1724029811634,-163.151581,0.00010876,2]
[335246405,1724029811655,-236.364642,0.00010876,2]
[335246406,1724029811677,-236.364642,0.00010876,2]
[335246407,1724029811699,-236.364642,0.00010876,2]
[335246408,1724029811721,-236.364642,0.00010876,2]
[335246409,1724029811742,-236.364642,0.00010876,2]
[335246410,1724029811763,-236.364642,0.00010876,2]
[335246411,1724029811784,-500.0,0.00010876,2]
[335246412,1724029811807,-500.0,0.00010876,2]
[335246413,1724029811980,-605.53688022,0.00010876,2]
[335246414,1724029812002,-151.0,0.00010876,2]
[335246415,1724029812024,-151.0,0.00010876,2]
[335246416,1724029812046,-151.0,0.00010876,2]
[335246417,1724029812073,-151.0,0.00010876,2]
[335246418,1724029812095,-151.0,0.00010876,2]
[335246419,1724029812116,-182.630072,0.00010876,2]
[335246420,1724029812139,-2088.458762,0.00010876,2]
[335246421,1724029812163,-2088.458762,0.00010876,2]
[335246422,1724029812187,-2088.458762,0.00010876,2]
[335246423,1724029812209,-2088.458762,0.00010876,2]
[335246424,1724029812232,-2088.458762,0.00010876,2]
[335246425,1724029812255,-2088.458762,0.00010876,2]
[335246426,1724029812276,-500.0,0.00010876,2]
[335246427,1724029812299,-500.0,0.00010876,2]
[335246428,1724029812326,-500.0,0.00010876,2]
[335246429,1724029812354,-1283.26,0.00010876,2]
[335246430,1724029812392,-1283.26,0.00010876,2]
[335246431,1724029812441,-1283.26,0.00010876,2]
[335246432,1724029812481,-9728.94,0.00010876,2]
[335246433,1724029812503,-9728.94,0.00010876,2]
[335246434,1724029812552,-9728.94,0.00010876,2]
[335246435,1724029812577,-749.125576,0.00010876,2]
[335246436,1724029812599,-749.125576,0.00010876,2]
[335246437,1724029812622,-749.125576,0.00010876,2]
[335246438,1724029812644,-749.125576,0.00010876,2]
[335246439,1724029812665,-749.125576,0.00010876,2]
[335246440,1724029812688,-749.125576,0.00010876,2]
[335246441,1724029812710,-442309.54141808,0.00010876,2]
[335246442,1724029812731,-210.838375,0.00010877,2]
[335246443,1724029812753,-210.838375,0.00010877,2]
[335246444,1724029812775,-151.0,0.00010877,2]
[335246445,1724029812801,-800.103196,0.00010877,2]
[335246446,1724029812825,-800.103196,0.00010877,2]
[335246447,1724029812847,-151.0,0.00010877,2]
[335246448,1724029812869,-298.976342,0.00010877,2]
[335246449,1724029812891,-298.976342,0.00010877,2]
[335246450,1724029812914,-151.0,0.00010877,2]
[335246451,1724029812936,-170.998454,0.00010877,2]
[335246452,1724029812958,-151.0,0.00010877,2]
[335246453,1724029812980,-170.998454,0.00010877,2]
[335246454,1724029813001,-208.527118,0.00010877,2]
[335246455,1724029813024,-208.527118,0.00010877,2]
[335246456,1724029813045,-163.151581,0.00010877,2]
[335246457,1724029813068,-163.151581,0.00010877,2]
[335246458,1724029813090,-236.364642,0.00010877,2]
[335246459,1724029813112,-236.364642,0.00010877,2]
[335246460,1724029813134,-211.294286,0.00010877,2]
[335246461,1724029813156,-2088.458762,0.00010877,2]
[335246462,1724029813178,-2088.458762,0.00010877,2]
[335246463,1724029813200,-749.125576,0.00010877,2]
[335246464,1724029813221,-749.125576,0.00010877,2]
[335246465,1724029813242,-235500.08890446,0.00010877,2]
[335246466,1724029813263,-330.81006973,0.00010879,2]
[335246467,1724029813283,-330.81006973,0.00010879,2]
[335246468,1724029813305,-462.97459314,0.00010879,2]
[335246469,1724029813328,-1739.57017204,0.00010888,2]
[335246470,1724029813350,-1193.71,0.00010898,2]
[335246471,1724029813371,-681.09,0.00010898,2]
[335246472,1724029813393,-9728.94,0.00010898,2]
[335246473,1724029813414,-45698.48604457,0.00010899,2]
[335246474,1724029813435,-210.838375,0.00010899,2]
[335246475,1724029813458,-210.838375,0.00010899,2]
[335246476,1724029813480,-210.838375,0.00010899,2]
[335246477,1724029813503,-210.838375,0.00010899,2]
[335246478,1724029813525,-800.103196,0.00010899,2]
[335246479,1724029813547,-151.0,0.00010899,2]
[335246480,1724029813571,-151.0,0.00010899,2]
[335246481,1724029813594,-800.103196,0.00010899,2]
[335246482,1724029813616,-800.103196,0.00010899,2]
[335246483,1724029813638,-800.103196,0.00010899,2]
[335246484,1724029813660,-151.0,0.00010899,2]
[335246485,1724029813681,-191.818116,0.00010899,2]
[335246486,1724029813702,-298.976342,0.00010899,2]
[335246487,1724029813723,-298.976342,0.00010899,2]
[335246488,1724029813745,-151.0,0.00010899,2]
[335246489,1724029813768,-8338.86240153,0.00010899,2]
[335246490,1724029813791,-8338.86240153,0.00010899,2]
[335246491,1724029813818,-8338.86240153,0.00010899,2]
[335246492,1724029813842,-170.998454,0.00010899,2]
[335246493,1724029813865,-269.761316,0.00010899,2]
[335246494,1724029813889,-170.998454,0.00010899,2]
[335246495,1724029813910,-208.527118,0.00010899,2]
[335246496,1724029813932,-208.527118,0.00010899,2]
[335246497,1724029813953,-208.527118,0.00010899,2]
[335246498,1724029813974,-208.527118,0.00010899,2]
[335246499,1724029813996,-163.151581,0.00010899,2]
[335246500,1724029814018,-163.151581,0.00010899,2]
[335246501,1724029814040,-163.151581,0.00010899,2]
[335246502,1724029814065,-163.151581,0.00010899,2]
[335246503,1724029814088,-236.364642,0.00010899,2]
[335246504,1724029814110,-236.364642,0.00010899,2]
[335246505,1724029814136,-236.364642,0.00010899,2]
[335246506,1724029814158,-236.364642,0.00010899,2]
[335246507,1724029814179,-2088.458762,0.00010899,2]
[335246508,1724029814201,-2088.458762,0.00010899,2]
[335246509,1724029814223,-2088.458762,0.00010899,2]
[335246510,1724029814246,-2088.458762,0.00010899,2]
[335246511,1724029814267,-749.125576,0.00010899,2]
[335246512,1724029814288,-749.125576,0.00010899,2]
[335246513,1724029814310,-749.125576,0.00010899,2]
[335246514,1724029814332,-749.125576,0.00010899,2]
[335246515,1724029814353,-1035.9868808,0.000109,2]
[335246516,1724029814375,-3142.4308954,0.000109,2]
[335246517,1724029814396,-486.21,0.000109,2]
[335246518,1724029814417,-300.0,0.000109,2]
[335246519,1724029814439,-426.67,0.000109,2]
[335246520,1724029814461,-968.71,0.000109,2]
[335246521,1724029814487,-8338.86240153,0.000109,2]
[335246522,1724029814511,-226.0,0.000109,2]
[335246523,1724029814539,-906.315,0.000109,2]
[335246524,1724029814578,-955.2,0.000109,2]
[335246525,1724029814613,-2622.14,0.000109,2]
[335246526,1724029814644,-358.0,0.000109,2]
[335246527,1724029814701,-539.4135,0.000109,2]
[335246528,1724029814744,-186.82359885,0.000109,2]
[335246529,1724029814799,-811.33539983,0.000109,2]
[335246530,1724029814835,-1000.0,0.000109,2]
[335246531,1724029814879,-1505.6179,0.000109,2]
[335246532,1724029814902,-202.76748645,0.00010949,2]
[335246533,1724029814924,-155.0,0.00010949,2]
[335246534,1724029814946,-218.42265722,0.00010958,2]
[335246535,1724029814969,-156.15828307,0.00010958,2]
[335246536,1724029814990,-150.0,0.00010959,2]
[335246537,1724029815012,-250.0,0.00010959,2]
[335246538,1724029815034,-800.103196,0.00010966,2]
[335246539,1724029815057,-151.0,0.00010966,2]
[335246540,1724029815083,-800.103196,0.00010966,2]
[335246541,1724029815104,-500.0,0.00010966,2]
[335246542,1724029815127,-1283.26,0.00010966,2]
[335246543,1724029815148,-47752.57894452,0.00010967,2]
[335246544,1724029815169,-210.838375,0.00010967,2]
[335246545,1724029815191,-210.838375,0.00010967,2]
[335246546,1724029815213,-298.976342,0.00010967,2]
[335246547,1724029815234,-298.976342,0.00010967,2]
[335246548,1724029815256,-151.0,0.00010967,2]
[335246549,1724029815278,-170.998454,0.00010967,2]
[335246550,1724029815300,-170.998454,0.00010967,2]
[335246551,1724029815325,-208.527118,0.00010967,2]
[335246552,1724029815346,-208.52712,0.00010967,2]
[335246553,1724029815368,-163.151581,0.00010967,2]
[335246554,1724029815390,-163.151581,0.00010967,2]
[335246555,1724029815411,-236.364642,0.00010967,2]
[335246556,1724029815432,-236.364638,0.00010967,2]
[335246557,1724029815454,-2088.458762,0.00010967,2]
[335246558,1724029815476,-2088.458753,0.00010967,2]
[335246559,1724029815498,-749.125576,0.00010967,2]
[335246560,1724029815520,-749.125578,0.00010967,2]
[335246561,1724029815540,-179.3875607,0.00010973,2]
[335246562,1724029815695,-200.0,0.00010973,2]
[335246563,1724029815716,-155.87057845,0.00010973,2]
[335246564,1724029815738,-200.0,0.00010973,2]
[335246565,1724029815759,-202.25921035,0.00010973,2]
[335246566,1724029815780,-302.16691874,0.00010973,2]
[335246567,1724029815806,-200.0,0.00010973,2]
[335246568,1724029815833,-800.103196,0.00010979,2]
[335246569,1724029815855,-151.0,0.00010979,2]
[335246570,1724029815878,-800.1032,0.00010979,2]
[335246571,1724029815901,-1350.20522667,0.00010986,2]
[335246572,1724029815923,-1193.71,0.00010988,2]
[335246573,1724029815944,-681.09,0.00010988,2]
[335246574,1724029815966,-500.0,0.00010988,2]
[335246575,1724029815989,-1283.26,0.00010988,2]
[335246576,1724029816011,-9728.94,0.00010988,2]
[335246577,1724029816033,-109758.70452596,0.00010989,2]
[335246578,1724029816054,-1279.56552153,0.00010989,3]
[335246579,1724029816078,-1265.87570204,0.00010989,3]
[335246580,1724029816099,-210.838375,0.00010989,2]
[335246581,1724029816121,-210.838375,0.00010989,2]
[335246582,1724029816144,-1193.71,0.00010989,2]
[335246583,1724029816165,-1193.71,0.00010989,2]
[335246584,1724029816187,-1193.71,0.00010989,2]
[335246585,1724029816208,-1193.71,0.00010989,2]
[335246586,1724029816230,-1193.71,0.00010989,2]
[335246587,1724029816252,-1193.71,0.00010989,2]
[335246588,1724029816273,-1193.71,0.00010989,2]
[335246589,1724029816295,-1193.71,0.00010989,2]
[335246590,1724029816317,-1193.89416494,0.00010989,2]
[335246591,1724029816338,-681.09,0.00010989,2]
[335246592,1724029816360,-681.09,0.00010989,2]
[335246593,1724029816382,-681.09,0.00010989,2]
[335246594,1724029816408,-681.09,0.00010989,2]
[335246595,1724029816433,-681.09,0.00010989,2]
[335246596,1724029816456,-681.09,0.00010989,2]
[335246597,1724029816478,-681.09,0.00010989,2]
[335246598,1724029816500,-681.09,0.00010989,2]
[335246599,1724029816522,-681.32706757,0.00010989,2]
[335246600,1724029816549,-298.976342,0.00010989,2]
[335246601,1724029816574,-298.976342,0.00010989,2]
[335246602,1724029816595,-151.0,0.00010989,2]
[335246603,1724029816618,-170.998454,0.00010989,2]
[335246604,1724029816640,-170.998454,0.00010989,2]
[335246605,1724029816662,-170.998454,0.00010989,2]
[335246606,1724029816684,-170.998444,0.00010989,2]
[335246607,1724029816706,-500.0,0.00010989,2]
[335246608,1724029816728,-512.18810512,0.00010989,2]
[335246609,1724029816750,-1283.26,0.00010989,2]
[335246610,1724029816772,-1283.26,0.00010989,2]
[335246611,1724029816796,-1283.26,0.00010989,2]
[335246612,1724029816819,-1283.26,0.00010989,2]
[335246613,1724029816842,-1283.26,0.00010989,2]
[335246614,1724029816865,-1283.26,0.00010989,2]
[335246615,1724029816888,-1283.26,0.00010989,2]
[335246616,1724029816912,-1283.26,0.00010989,2]
[335246617,1724029816936,-1283.26,0.00010989,2]
[335246618,1724029816959,-9728.94,0.00010989,2]
[335246619,1724029816982,-9728.94,0.00010989,2]
[335246620,1724029817006,-9728.94,0.00010989,2]
[335246621,1724029817028,-9728.94,0.00010989,2]
[335246622,1724029817051,-9728.94,0.00010989,2]
[335246623,1724029817075,-9728.94,0.00010989,2]
[335246624,1724029817098,-9728.94,0.00010989,2]
[335246625,1724029817121,-9728.94,0.00010989,2]
[335246626,1724029817144,-9728.98334723,0.00010989,2]
[335246627,1724029817167,-1891336.30595304,0.0001099,3]
[335246628,1724029817189,-1441058.68358675,0.0001099,3]
[335246629,1724029817211,-61673.20437306,0.0001099,2]
[335246630,1724029817234,-373666.68741697,0.0001099,3]
[335246631,1724029817256,-138008.99370997,0.0001099,3]
[335246632,1724029817278,-20381.83698695,0.0001099,3]
[335246633,1724029817300,-7842.3226628,0.00010992,2]
[335246634,1724029817324,-9286.8346174,0.00010992,2]
[335246635,1724029817346,-10731.3465721,0.00010992,2]
[335246636,1724029817368,-12175.8585267,0.00010992,2]
[335246637,1724029817392,-13620.3704814,0.00010992,2]
[335246638,1724029817414,-2167.2488653,0.00010992,2]
[335246639,1724029817436,-2571.8256592,0.00010992,2]
[335246640,1724029817457,-2976.4024532,0.00010992,2]
[335246641,1724029817479,-3380.9792472,0.00010992,2]
[335246642,1724029817500,-3785.5560411,0.00010992,2]
[335246643,1724029817522,-19389.4436666,0.00010992,2]
[335246644,1724029817544,-22965.9256666,0.00010992,2]
[335246645,1724029817566,-26542.4076666,0.00010992,2]
[335246646,1724029817591,-30118.8896666,0.00010992,2]
[335246647,1724029817613,-33695.3716666,0.00010992,2]
[335246648,1724029817636,-1755.3593398,0.00010992,2]
[335246649,1724029817660,-2079.1443431,0.00010992,2]
[335246650,1724029817683,-2402.9293465,0.00010992,2]
[335246651,1724029817704,-2726.7143498,0.00010992,2]
[335246652,1724029817726,-3050.4993531,0.00010992,2]
[335246653,1724029817748,-155.0,0.00010993,2]
[335246654,1724029817770,-794.0,0.00010996,2]
[335246655,1724029817792,-420.62437439,0.00010997,2]
[335246656,1724029817815,-1565.18429898,0.00010998,2]
[335246657,1724029817840,-150.0,0.00010999,2]
[335246658,1724029817862,-150.189748,0.00010999,3]
[335246659,1724029817885,-431.9598986,0.00010999,2]
[335246660,1724029817908,-2000.0,0.00011,2]
[335246661,1724029817934,-5346785.25210503,0.00011,2]
[335246662,1724029817955,-4235772.82219114,0.00011,2]
[335246663,1724029817982,-2771841.63140287,0.00011,2]
[335246674,1724029832070,-2212.81480299,9.988e-05,2]
[335246675,1724029832080,-496.98348959,0.00010888,2]
[335246676,1724029832090,-200.0,0.00010973,2]
[335246677,1724029832099,-750.0,0.00010989,2]
[335246678,1724029832109,-5311.38594021,0.00011,2]
[335246679,1724029832120,-825.54249811,0.00011,2]
[335246680,1724029832135,-716.18874666,0.00011,2]
[335246681,1724029832146,-321.41946489,0.00011,2]
[335246682,1724029832196,-16612.87901487,0.00011,2]
[335246683,1724029832207,-478.4759374,0.00011,2]
[335246684,1724029832218,-619.14994573,0.00011,2]
[335246685,1724029832229,-994.86951933,0.00011,2]
[335246686,1724029832261,-4458.95684898,0.00011,2]
[335246687,1724029832273,-260.01884099,0.00011,2]
[335246688,1724029832328,-1168.46,0.00011,2]
[335246689,1724029832340,-345.80403217,0.00011,2]
[335246690,1724029832351,-4081.15884832,0.00011,2]
[335246693,1724029838100,-3084.17838248,0.00011,2]
[335246694,1724029838217,-300.0,0.00010999,2]
[335246695,1724029838277,-375.0,0.00010999,2]
[335246696,1724029838287,-217.08120004,0.00011,2]
[335246698,1724029838426,-1700.0,0.00011,2]
[335246699,1724029838438,-119085.22520008,0.00011,2]
[335246707,1724029840347,-652.90591074,0.000109,2]
[335246708,1724029840356,-2746.18864434,0.00011,2]
[335246709,1724029840397,-998.01584091,0.00011,2]
[335246710,1724029840408,-37994.0466761,0.00011,2]
[335246711,1724029840459,-3500.0,0.00011,2]
[335246712,1724029840522,-588.2445,0.00011,2]
[335246713,1724029840533,-292.49343,0.00011,2]
[335246714,1724029840596,-420.63414532,0.00011,2]
[335246811,1724029844442,-496.2367825,0.00011,2]
[335246812,1724029844453,-500.0,0.00011,2]
[335246813,1724029844464,-3932.95846468,0.00011,2]
[335246814,1724029844475,-8081.28438641,0.00011,2]
[335246815,1724029844486,-279.92356222,0.00011,2]
[335246816,1724029844497,-1395.79927582,0.00011,2]
[335246817,1724029844508,-1264.06135777,0.00011,2]
[335246818,1724029844519,-490.45,0.00011,2]
[335246819,1724029844529,-11617.27147713,0.00011,2]
[335246820,1724029844541,-32100.0,0.00011,2]
[335246821,1724029844551,-381.12997601,0.00011,2]
[335246823,1724029846159,-11703.58334,0.00011,2]